fUST/lending_fUST_20251117
["ID","MTS","AMOUNT","RATE_DAILY","PERIOD"]
[394196329,1763371765491,-1207.87661375,0.00015163,2]
[394196330,1763371765513,-1207.87661375,0.00015163,2]
[394196331,1763371765535,-1207.87661375,0.00015163,2]
[394196332,1763371765555,-1207.87661375,0.00015163,2]
[394196333,1763371765576,-1207.87661375,0.00015163,2]
[394196334,1763371765598,-1207.87661375,0.00015163,2]
[394196335,1763371765619,-1207.87661375,0.00015163,2]
[394196336,1763371765640,-1207.87661375,0.00015163,2]
[394196337,1763371765664,-1207.87661375,0.00015163,2]
[394196338,1763371765686,-1207.87661375,0.00015163,2]
[394196339,1763371765708,-1207.87661375,0.00015163,2]
[394196340,1763371765730,-1207.87661375,0.00015163,2]
[394196341,1763371765751,-1207.87661375,0.00015163,2]
[394196342,1763371765779,-500.0,0.00015163,2]
[394196343,1763371765799,-500.0,0.00015163,2]
[394196344,1763371765819,-500.0,0.00015163,2]
[394196345,1763371765840,-500.0,0.00015163,2]
[394196346,1763371765860,-500.0,0.00015163,2]
[394196347,1763371765880,-500.0,0.00015163,2]
[394196348,1763371765900,-500.0,0.00015163,2]
[394196349,1763371765920,-500.0,0.00015163,2]
[394196350,1763371765940,-500.0,0.00015163,2]
[394196351,1763371765960,-500.0,0.00015163,2]
[394196352,1763371765981,-500.0,0.00015163,2]
[394196353,1763371766003,-500.0,0.00015163,2]
[394196354,1763371766022,-500.0,0.00015163,2]
[394196355,1763371766119,-500.0,0.00015163,2]
[394196356,1763371766141,-500.0,0.00015163,2]
[394196357,1763371766161,-500.0,0.00015163,2]
[394196358,1763371766181,-500.0,0.00015163,2]
[394196359,1763371766200,-500.0,0.00015163,2]
[394196360,1763371766219,-500.0,0.00015163,2]
[394196361,1763371766238,-500.0,0.00015163,2]
[394196362,1763371766257,-500.0,0.00015163,2]
[394196363,1763371766276,-500.0,0.00015163,2]
[394196364,1763371766295,-500.0,0.00015163,2]
[394196365,1763371766314,-500.0,0.00015163,2]
[394196366,1763371766334,-500.0,0.00015163,2]
[394196367,1763371766354,-500.0,0.00015163,2]
[394196368,1763371766373,-500.0,0.00015163,2]
[394196369,1763371766392,-500.0,0.00015163,2]
[394196370,1763371766416,-500.0,0.00015163,2]
[394196371,1763371766436,-355.20070488,0.00015163,2]
[394196372,1763371767167,-144.79929512,0.00015163,2]
[394196373,1763371767187,-500.0,0.00015163,2]
[394196374,1763371767205,-571.8674972,0.00015163,2]
[394196375,1763371767224,-500.0,0.00015163,2]
[394196376,1763371767242,-500.0,0.00015163,2]
[394196377,1763371767261,-500.0,0.00015163,2]
[394196378,1763371767279,-500.0,0.00015163,2]
[394196379,1763371767299,-500.0,0.00015163,2]
[394196380,1763371767318,-500.0,0.00015163,2]
[394196381,1763371767337,-500.0,0.00015163,2]
[394196382,1763371767356,-500.0,0.00015163,2]
[394196383,1763371767375,-500.0,0.00015163,2]
[394196384,1763371767395,-500.0,0.00015163,2]
[394196385,1763371767417,-500.0,0.00015163,2]
[394196386,1763371767439,-500.0,0.00015163,2]
[394196387,1763371767459,-500.0,0.00015163,2]
[394196388,1763371767480,-500.0,0.00015163,2]
[394196389,1763371767498,-500.0,0.00015163,2]
[394196390,1763371767516,-500.0,0.00015163,2]
[394196391,1763371767538,-13286.64275132,0.00015163,2]
[394196392,1763371767560,-500.0,0.00015163,2]
[394196393,1763371767580,-500.0,0.00015163,2]
[394196394,1763371767599,-500.0,0.00015163,2]
[394196395,1763371767619,-13286.64275132,0.00015163,2]
[394196396,1763371767637,-500.0,0.00015163,2]
[394196397,1763371767657,-500.0,0.00015163,2]
[394196398,1763371767678,-13286.64275132,0.00015163,2]
[394196399,1763371767698,-500.0,0.00015163,2]
[394196400,1763371767717,-500.0,0.00015163,2]
[394196401,1763371767738,-13286.64275132,0.00015163,2]
[394196402,1763371767757,-500.0,0.00015163,2]
[394196403,1763371767777,-13286.64275132,0.00015163,2]
[394196404,1763371767798,-500.0,0.00015163,2]
[394196405,1763371767817,-500.0,0.00015163,2]
[394196406,1763371767837,-13286.64275132,0.00015163,2]
[394196407,1763371767856,-500.0,0.00015163,2]
[394196408,1763371767879,-13286.64275132,0.00015163,2]
[394196409,1763371767899,-500.0,0.00015163,2]
[394196410,1763371767919,-500.0,0.00015163,2]
[394196411,1763371767940,-13286.64275132,0.00015163,2]
[394196412,1763371767961,-500.0,0.00015163,2]
[394196413,1763371767981,-500.0,0.00015163,2]
[394196414,1763371768004,-13286.64275132,0.00015163,2]
[394196415,1763371768024,-500.0,0.00015163,2]
[394196416,1763371768046,-500.0,0.00015163,2]
[394196417,1763371768150,-13286.64275132,0.00015163,2]
[394196418,1763371768171,-500.0,0.00015163,2]
[394196419,1763371768193,-13286.64275132,0.00015163,2]
[394196420,1763371768212,-500.0,0.00015163,2]
[394196421,1763371768231,-500.0,0.00015163,2]
[394196422,1763371768251,-3869.33434316,0.00015163,2]
[394196423,1763371769148,-9417.30840816,0.00015163,2]
[394196424,1763371769169,-500.0,0.00015163,2]
[394196425,1763371769190,-500.0,0.00015163,2]
[394196426,1763371769211,-500.0,0.00015163,2]
[394196427,1763371769230,-500.0,0.00015163,2]
[394196428,1763371769251,-13286.64275132,0.00015163,2]
[394196429,1763371769271,-500.0,0.00015163,2]
[394196430,1763371769289,-500.0,0.00015163,2]
[394196431,1763371769309,-500.0,0.00015163,2]
[394196432,1763371769329,-500.0,0.00015163,2]
[394196433,1763371769350,-13286.64275132,0.00015163,2]
[394196434,1763371769368,-500.0,0.00015163,2]
[394196435,1763371769388,-500.0,0.00015163,2]
[394196436,1763371769413,-13286.64275132,0.00015163,2]
[394196437,1763371769433,-314.53485204,0.00015163,2]
[394196438,1763371769452,-500.0,0.00015163,2]
[394196439,1763371769475,-13286.64275132,0.00015163,2]
[394196440,1763371769494,-500.0,0.00015163,2]
[394196441,1763371769514,-500.0,0.00015163,2]
[394196442,1763371769534,-13286.64275132,0.00015163,2]
[394196443,1763371769553,-500.0,0.00015163,2]
[394196444,1763371769574,-13286.64275132,0.00015163,2]
[394196445,1763371769593,-500.0,0.00015163,2]
[394196446,1763371769613,-500.0,0.00015163,2]
[394196447,1763371769634,-8780.97643188,0.00015163,2]
[394196448,1763371777469,5000.0,0.0001875,9]
[394196509,1763371832787,-500.0,0.00015011,2]
[394196510,1763371832797,-1225.57643714,0.00015062,2]
[394196522,1763371838165,-5198.78788302,0.00015062,2]
[394196523,1763371838174,-184.97034896,0.00015162,2]
[394196524,1763371838184,-300.0,0.00015162,2]
[394196525,1763371838193,-300.0,0.00015162,2]
[394196526,1763371838204,-1200.0,0.00015162,2]
[394196527,1763371838213,-500.0,0.00015162,2]
[394196528,1763371838223,-2890.3977728,0.00015163,2]
[394196529,1763371838232,-999.0,0.00015164,2]
[394196530,1763371838241,-21848.09869159,0.00015164,2]
[394196531,1763371838254,-28151.90130841,0.00015164,2]
[394196532,1763371838264,-500.0,0.00015173,2]
[394196533,1763371838273,-500.0,0.00015173,2]
[394196534,1763371838283,-441.96562617,0.00015173,2]
[394196535,1763371838292,-502.15661401,0.00015173,2]
[394196536,1763371838302,-267.34034832,0.00015173,2]
[394196537,1763371838311,-500.0,0.00015173,2]
[394196538,1763371838321,-500.0,0.00015173,2]
[394196539,1763371838331,-500.0,0.00015173,2]
[394196540,1763371838340,-500.0,0.00015173,2]
[394196541,1763371838350,-500.0,0.00015173,2]
[394196542,1763371838360,-502.5065032,0.00015173,2]
[394196543,1763371838369,-500.0,0.00015173,2]
[394196544,1763371838380,-500.0,0.00015173,2]
[394196545,1763371838389,-500.0,0.00015173,2]
[394196546,1763371838399,-938.2600312,0.00015243,2]
[394196547,1763371838409,-500.0,0.00015373,2]
[394196548,1763371838420,-502.44158823,0.00015373,2]
[394196549,1763371838433,-500.0,0.00015373,2]
[394196550,1763371838442,-488.03765742,0.00015373,2]
[394196551,1763371838452,-504.39729858,0.00015373,2]
[394196552,1763371838462,-502.26261043,0.00015373,2]
[394196553,1763371838471,-518.08160207,0.00015373,2]
[394196554,1763371838481,-500.0,0.00015373,2]
[394196555,1763371838491,-502.8585748,0.00015373,2]
[394196556,1763371838501,-500.0,0.00015373,2]
[394196557,1763371838511,-500.0,0.00015373,2]
[394196558,1763371838520,-445.08248483,0.00015373,2]
[394196559,1763371838529,-500.0,0.00015373,2]
[394196560,1763371838538,-429.52953356,0.00015373,2]
[394196561,1763371838547,-501.9597338,0.00015373,2]
[394196562,1763371838556,-500.0,0.00015373,2]
[394196563,1763371838565,-500.0,0.00015436,2]
[394196564,1763371838575,-500.0,0.0001571,2]
[394196565,1763371838586,-1004.49475929,0.00015721,2]
[394196566,1763371838595,-1090.68055788,0.00015721,2]
[394196567,1763371838605,-1000.0,0.00015721,2]
[394196568,1763371838615,-503.94861877,0.00015721,2]
[394196569,1763371838625,-1000.0,0.00015721,2]
[394196570,1763371838635,-1000.0,0.00015721,2]
[394196571,1763371838643,-500.81441983,0.00015721,2]
[394196572,1763371838728,-325.78165932,0.00015721,2]
[394196573,1763371838738,-1001.94711302,0.00015721,2]
[394196574,1763371838747,-436.00854889,0.00015721,2]
[394196575,1763371838756,-178.1124712,0.00015821,2]
[394196576,1763371838766,-151.0,0.00015863,2]
[394196577,1763371838775,-151.0,0.00015863,2]
[394196578,1763371838784,-151.0,0.00015863,2]
[394196579,1763371838794,-151.0,0.00015863,2]
[394196580,1763371838803,-151.0,0.00015863,2]
[394196581,1763371838812,-151.0,0.00015863,2]
[394196582,1763371838821,-151.0,0.00015863,2]
[394196583,1763371838831,-151.0,0.00015863,2]
[394196584,1763371838841,-151.0,0.00015863,2]
[394196585,1763371838851,-151.0,0.00015863,2]
[394196586,1763371838860,-151.0,0.00015863,2]
[394196587,1763371838870,-151.0,0.00015863,2]
[394196588,1763371838879,-151.0,0.00015863,2]
[394196589,1763371838889,-275.61491986,0.00015863,2]
[394196590,1763371838898,-500.0,0.00015873,2]
[394196591,1763371838908,-500.0,0.00015873,2]
[394196592,1763371838918,-500.0,0.00015873,2]
[394196593,1763371838927,-249.43248286,0.00015873,2]
[394196594,1763371838936,-500.0,0.00015873,2]
[394196595,1763371838945,-500.0,0.00015873,2]
[394196596,1763371838957,-500.0,0.00015873,2]
[394196597,1763371838966,-500.0,0.00015873,2]
[394196598,1763371838976,-500.0,0.00015873,2]
[394196599,1763371838986,-500.0,0.00015873,2]
[394196600,1763371838996,-500.0,0.00015873,2]
[394196601,1763371839005,-500.0,0.00015873,2]
[394196602,1763371839014,-500.0,0.00015873,2]
[394196603,1763371839024,-500.0,0.00015873,2]
[394196604,1763371839033,-500.0,0.00015873,2]
[394196605,1763371839043,-500.0,0.00015873,2]
[394196606,1763371839052,-507.23857365,0.00015873,2]
[394196607,1763371839062,-500.0,0.00015873,2]
[394196608,1763371839071,-500.0,0.00015873,2]
[394196609,1763371839080,-500.0,0.00015873,2]
[394196610,1763371839090,-500.0,0.00015873,2]
[394196611,1763371839099,-502.86159398,0.00015873,2]
[394196612,1763371839110,-169.58130387,0.00015873,2]
[394196613,1763371839121,-500.0,0.00015873,2]
[394196614,1763371839132,-890000.0,0.00015873,2]
[394196615,1763371839142,-1099.65177378,0.00015921,2]
[394196616,1763371839152,-501.53166973,0.00015921,2]
[394196617,1763371839163,-508.13254612,0.00015921,2]
[394196618,1763371839172,-1093.21413216,0.00015921,2]
[394196619,1763371839181,-1000.0,0.00015921,2]
[394196620,1763371839189,-501.0503735,0.00015921,2]
[394196621,1763371839199,-500.0,0.00015973,2]
[394196622,1763371839209,-500.0,0.00015973,2]
[394196623,1763371839219,-501.98604669,0.00015973,2]
[394196624,1763371839228,-161.01806223,0.00015973,2]
[394196625,1763371839239,-495.28841905,0.00015973,2]
[394196626,1763371839248,-466.99895109,0.00015973,2]
[394196627,1763371839259,-500.0,0.00015973,2]
[394196628,1763371839268,-500.0,0.00015984,2]
[394196629,1763371839277,-100000.0,0.0001599,2]
[394196630,1763371839287,-1647.0,0.00016103,2]
[394196631,1763371839297,-206.51866752,0.00016162,2]
[394196632,1763371839306,-257.97386137,0.00016162,2]
[394196633,1763371839315,-934.11821687,0.00016164,2]
[394196634,1763371839324,-178.1124712,0.00016169,2]
[394196635,1763371839334,-10000.0,0.00016169,2]
[394196636,1763371839343,-500.0,0.00016173,2]
[394196637,1763371839352,-500.0,0.00016173,2]
[394196638,1763371839362,-500.4503771,0.00016173,2]
[394196639,1763371839372,-505.03306875,0.00016173,2]
[394196640,1763371839381,-500.0,0.00016173,2]
[394196641,1763371839391,-501.3914242,0.00016173,2]
[394196642,1763371839400,-500.0,0.00016173,2]
[394196643,1763371839410,-500.0,0.00016258,2]
[394196644,1763371839426,-722.50267667,0.00016261,2]
[394196645,1763371839435,-1185.90415884,0.00016268,2]
[394196646,1763371839444,-513.64025914,0.00016268,2]
[394196647,1763371839455,-1517.26996116,0.00016268,2]
[394196648,1763371839465,-500.0,0.00016269,2]
[394196649,1763371839474,-500.0,0.00016269,2]
[394196650,1763371839486,-500.0,0.00016269,2]
[394196651,1763371839496,-960.69,0.00016269,2]
[394196652,1763371839506,-960.69,0.00016269,2]
[394196653,1763371839515,-960.69,0.00016269,2]
[394196654,1763371839524,-960.69,0.00016269,2]
[394196655,1763371839534,-960.69,0.00016269,2]
[394196656,1763371839545,-960.69,0.00016269,2]
[394196657,1763371839554,-960.69,0.00016269,2]
[394196658,1763371839563,-960.69,0.00016269,2]
[394196659,1763371839572,-960.69,0.00016269,2]
[394196660,1763371839582,-960.69,0.00016269,2]
[394196661,1763371839592,-960.69,0.00016269,2]
[394196662,1763371839601,-960.69,0.00016269,2]
[394196663,1763371839610,-960.69,0.00016269,2]
[394196664,1763371839620,-960.69,0.00016269,2]
[394196665,1763371839629,-960.69,0.00016269,2]
[394196666,1763371839639,-960.69,0.00016269,2]
[394196667,1763371839647,-960.69,0.00016269,2]
[394196668,1763371839656,-960.69,0.00016269,2]
[394196669,1763371839665,-960.69,0.00016269,2]
[394196670,1763371839674,-960.69,0.00016269,2]
[394196671,1763371839684,-960.69,0.00016269,2]
[394196672,1763371839694,-960.69,0.00016269,2]
[394196673,1763371839703,-960.69,0.00016269,2]
[394196674,1763371839712,-960.80418685,0.00016269,2]
[394196675,1763371839721,-528.33926907,0.0001627,2]
[394196676,1763371839730,-333.64945345,0.0001627,2]
[394196677,1763371839739,-151.0,0.00016272,2]
[394196678,1763371839748,-299.77192,0.00016272,2]
[394196679,1763371839757,-299.77192,0.00016272,2]
[394196680,1763371839767,-299.77192,0.00016272,2]
[394196681,1763371839776,-299.77192,0.00016272,2]
[394196682,1763371839785,-229.347791,0.00016272,2]
[394196683,1763371839795,-229.347791,0.00016272,2]
[394196684,1763371839804,-229.347791,0.00016272,2]
[394196685,1763371839814,-229.347791,0.00016272,2]
[394196686,1763371839823,-501.81896579,0.00016273,2]
[394196687,1763371839832,-500.0,0.00016273,2]
[394196688,1763371839842,-500.81735696,0.00016273,2]
[394196690,1763371839851,-500.0,0.00016273,2]
[394196691,1763371839861,-507.90955875,0.00016273,2]
[394196693,1763371839871,-501.96334487,0.00016273,2]
[394196695,1763371839880,-500.0,0.00016273,2]
[394196696,1763371839889,-503.85554989,0.00016273,2]
[394196697,1763371839899,-500.0,0.00016273,2]
[394196698,1763371839909,-151.0,0.000163,2]
[394196699,1763371839919,-151.0,0.000163,2]
[394196700,1763371839928,-1253.25580372,0.000163,2]
[394196701,1763371839937,-12962.04999538,0.00016338,2]
[394196702,1763371839946,-1000.0,0.00016398,2]
[394196703,1763371839956,-1000.0,0.00016398,2]
[394196704,1763371839965,-1000.0,0.00016398,2]
[394196705,1763371839975,-1000.0,0.00016398,2]
[394196706,1763371839984,-1000.0,0.00016398,2]
[394196707,1763371839993,-501.42486407,0.00016421,2]
[394196708,1763371840003,-1000.0,0.00016421,2]
[394196710,1763371840074,-501.54850908,0.00016421,2]
[394196711,1763371840088,-1001.37329497,0.00016421,2]
[394196712,1763371840098,-357.78598318,0.00016421,2]
[394196713,1763371840108,-1000.0,0.00016421,2]
[394196714,1763371840119,-1000.83212326,0.00016421,2]
[394196716,1763371840129,-509.45721812,0.00016421,2]
[394196717,1763371840139,-1000.0,0.00016421,2]
[394196718,1763371840147,-1000.0,0.00016421,2]
[394196719,1763371840157,-1001.19443095,0.00016421,2]
[394196720,1763371840166,-500.0,0.00016438,2]
[394196721,1763371840175,-500.0,0.00016438,2]
[394196722,1763371840184,-500.0,0.00016438,2]
[394196723,1763371840193,-500.0,0.00016438,2]
[394196724,1763371840202,-500.0,0.00016438,2]
[394196725,1763371840215,-465.92790711,0.00016438,2]
[394196726,1763371840224,-500.0,0.00016438,2]
[394196727,1763371840234,-500.0,0.00016438,2]
[394196728,1763371840243,-500.0,0.00016438,2]
[394196729,1763371840253,-500.0,0.00016438,2]
[394196730,1763371840263,-500.0,0.00016438,2]
[394196731,1763371840272,-500.0,0.00016438,2]
[394196732,1763371840282,-500.0,0.00016438,2]
[394196733,1763371840291,-500.0,0.00016438,2]
[394196734,1763371840300,-160.0,0.00016443,2]
[394196735,1763371840310,-524.87998137,0.00016468,2]
[394196736,1763371840320,-500.0,0.00016473,2]
[394196737,1763371840330,-500.0,0.00016473,2]
[394196738,1763371840339,-1000.0,0.00016521,2]
[394196739,1763371840348,-502.92139257,0.00016521,2]
[394196740,1763371840358,-1000.0,0.00016521,2]
[394196741,1763371840367,-500.0,0.00016532,2]
[394196742,1763371840377,-420.0,0.00016591,2]
[394196743,1763371840387,-300.0,0.00016596,2]
[394196744,1763371840397,-300.0,0.00016596,2]
[394196745,1763371840407,-300.0,0.00016596,2]
[394196746,1763371840416,-300.0,0.00016596,2]
[394196747,1763371840428,-300.0,0.00016596,2]
[394196748,1763371840438,-300.0,0.00016596,2]
[394196749,1763371840447,-300.0,0.00016596,2]
[394196750,1763371840456,-300.0,0.00016596,2]
[394196751,1763371840467,-300.0,0.00016596,2]
[394196752,1763371840476,-300.0,0.00016596,2]
[394196753,1763371840485,-300.0,0.00016596,2]
[394196754,1763371840494,-300.0,0.00016596,2]
[394196755,1763371840506,-300.0,0.00016596,2]
[394196756,1763371840515,-300.0,0.00016596,2]
[394196757,1763371840524,-300.0,0.00016596,2]
[394196758,1763371840534,-600.0,0.00016596,2]
[394196759,1763371840544,-1680.0,0.00016675,2]
[394196760,1763371840555,-205.76193936,0.00016709,2]
[394196761,1763371840569,-1000.0,0.00016721,2]
[394196762,1763371840579,-274.0948081,0.00016721,2]
[394196763,1763371840591,-1001.47190717,0.00016721,2]
[394196764,1763371840605,-500.0,0.00016806,2]
[394196765,1763371840617,-511.09051941,0.00016821,2]
[394196766,1763371840628,-1000.0,0.00016821,2]
[394196767,1763371840640,-2890.3977728,0.0001692,2]
[394196768,1763371840652,-1016.64132678,0.00016968,2]
[394196769,1763371840664,-504.70574074,0.00016968,2]
[394196770,1763371840675,-541.04800509,0.00016968,2]
[394196771,1763371840686,-1500.0,0.00016968,2]
[394196772,1763371840697,-260.0,0.00016991,2]
[394196773,1763371840709,-14821.28757817,0.00017,2]
[394196774,1763371840720,-1582.11436431,0.00017068,2]
[394196775,1763371840729,-1500.0,0.00017068,2]
[394196776,1763371840739,-500.0,0.0001708,2]
[394196777,1763371840749,-500.0,0.0001726,2]
[394196778,1763371840759,-1500.0,0.00017268,2]
[394196779,1763371840768,-4236.2,0.00017349,3]
[394196780,1763371840776,-2118.1,0.00017349,3]
[394196781,1763371840786,-1059.04,0.00017349,3]
[394196782,1763371840796,-529.52,0.00017349,3]
[394196783,1763371840805,-500.0,0.00017354,2]
[394196784,1763371840815,-1004.37558909,0.00017368,2]
[394196785,1763371840824,-893.10531175,0.00017438,2]
[394196786,1763371840833,-2000.0,0.00017516,2]
[394196787,1763371840842,-360.0,0.00017539,2]
[394196788,1763371840852,-2000.0,0.00017616,2]
[394196789,1763371840861,-500.0,0.00017628,2]
[394196790,1763371840871,-1855.51592409,0.00017816,2]
[394196791,1763371840881,-500.0,0.00017902,2]
[394196792,1763371840890,-36187.92069803,0.00018,2]
[394196793,1763371840900,-1477.42487773,0.00018064,2]
[394196794,1763371840909,-460.0,0.00018087,2]
[394196795,1763371840918,-587.0,0.00018155,2]
[394196796,1763371840928,-1931.38695596,0.00018164,2]
[394196797,1763371840937,-500.0,0.00018176,2]
[394196798,1763371840946,-720.0,0.00018256,2]
[394196799,1763371840955,-2351.0,0.00018339,2]
[394196800,1763371840964,-500.0,0.0001845,2]
[394196801,1763371840973,-560.0,0.00018635,2]
[394196802,1763371840981,-435.59980476,0.00018675,2]
[394196803,1763371840990,-2890.3977728,0.00018678,2]
[394196804,1763371840999,-237.14935384,0.00018709,2]
[394196805,1763371841008,-500.0,0.00018724,2]
[394196806,1763371841017,-500.0,0.00018998,2]
[394196807,1763371841027,-2083.224997,0.00019178,2]
[394196808,1763371841036,-2083.224997,0.00019178,2]
[394196809,1763371841046,-2083.224997,0.00019178,2]
[394196810,1763371841056,-2083.224997,0.00019178,2]
[394196811,1763371841065,-660.0,0.00019183,2]
[394196812,1763371841073,-500.0,0.00019272,2]
[394196813,1763371841082,-893.10531175,0.00019419,2]
[394196814,1763371841091,-500.0,0.00019546,2]
[394196815,1763371841101,-760.0,0.00019731,2]
[394196816,1763371841110,-500.0,0.0001982,2]
[394196817,1763371841120,-823.0,0.00019866,2]
[394196818,1763371841130,-6424.3643201,0.00019967,2]
[394196819,1763371841139,-1152.0,0.0002,2]
[394196820,1763371841149,-11235.22040954,0.0002,2]
[394196821,1763371841159,-183.73144672,0.0002,2]
[394196822,1763371841169,-2963.6142836,0.0002,20]
[394196823,1763371841179,-2000.0,0.0002,7]
[394196824,1763371841188,-864.0,0.00020081,2]
[394196825,1763371841197,-395.03358643,0.00020094,2]
[394196826,1763371841207,-230.0,0.0002017,2]
[394196827,1763371841216,-860.0,0.00020279,2]
[394196828,1763371841226,-2890.3977728,0.00020435,2]
[394196829,1763371841235,-152.278821,0.00020548,7]
[394196830,1763371841244,-152.278821,0.00020548,7]
[394196831,1763371841254,-152.278821,0.00020548,7]
[394196832,1763371841263,-152.278821,0.00020548,7]
[394196833,1763371841336,-268.53676832,0.00020709,2]
[394196834,1763371841345,-960.0,0.00020827,2]
[394196835,1763371841355,-1547.7476297,0.00021,10]
[394196836,1763371841365,-1000.0,0.000213,2]
[394196837,1763371841374,-1000.0,0.000213,2]
[394196838,1763371841384,-1000.0,0.000213,2]
[394196839,1763371841393,-1000.0,0.000213,2]
[394196840,1763371841403,-1000.0,0.000213,2]
[394196841,1763371841415,-1060.0,0.00021375,2]
[394196842,1763371841432,-893.10531175,0.000214,2]
[394196843,1763371841441,-1152.0,0.00021739,2]
[394196844,1763371841451,-2000.0,0.00021875,7]
[394196845,1763371841461,-500.0,0.00021917,2]
[394196846,1763371841472,-519.979803,0.00021918,2]
[394196847,1763371841482,-519.979803,0.00021918,2]
[394196848,1763371841492,-519.979803,0.00021918,2]
[394196849,1763371841504,-519.979803,0.00021918,2]
[394196850,1763371841514,-150.0,0.00021918,2]
[394196851,1763371841524,-1160.0,0.00021923,2]
[394196852,1763371841534,-1000.0,0.00022089,20]
[394196853,1763371841544,-315.7,0.000221,14]
[394196854,1763371841553,-396.48,0.000221,7]
[394196855,1763371841563,-17534.95,0.000221,7]
[394196856,1763371841573,-400.67432439,0.000221,7]
[394196857,1763371841582,-300.0,0.00022466,2]
[394196858,1763371841590,-185.19814475,0.00022471,2]
[394196859,1763371841600,-299.9241828,0.00022709,2]
[394196860,1763371841610,-5355.32147817,0.00023,2]
[394196861,1763371841619,-500.0,0.00023013,2]
[394196862,1763371841627,-450.0,0.00023014,2]
[394196863,1763371841637,-893.10531175,0.00023382,2]
[394196864,1763371841647,-2000.0,0.0002375,7]
[394196865,1763371841656,-455.0,0.00023788,2]
[394196866,1763371841666,-1726.59010579,0.00024,2]
[394196867,1763371841675,-463.12333871,0.00024,2]
[394196868,1763371841685,-500.0,0.00024109,2]
[394196869,1763371841694,-389417.61192187,0.00024142,2]
[394196870,1763371841704,-151.0,0.00024142,7]
[394196871,1763371841713,-151.0,0.00024142,7]
[394196872,1763371841723,-151.0,0.00024142,7]
[394196873,1763371841732,-1000.0,0.00024298,20]
[394196874,1763371841741,-244.0,0.00024298,20]
[394196875,1763371841750,-116762.72740375,0.0002465,2]
[394196876,1763371841759,-380.0,0.00024658,2]
[394196877,1763371841770,-151.0,0.00024658,7]
[394196878,1763371841780,-331.31159728,0.00024709,2]
[394196879,1763371841789,-16754.58798679,0.00024774,2]
[394196880,1763371841799,-151.0,0.000248,7]
[394196881,1763371841810,-151.0,0.000248,7]
[394196882,1763371841820,-196.125631,0.000248,7]
[394196883,1763371841829,-151.0,0.000248,7]
[394196884,1763371841839,-151.0,0.000248,7]
[394196885,1763371841849,-2083.224997,0.000248,7]
[394196886,1763371841858,-2083.224997,0.000248,7]
[394196887,1763371841868,-2083.224997,0.000248,7]
[394196888,1763371841878,-2083.224997,0.000248,7]
[394196889,1763371841887,-299.77192,0.000248,7]
[394196890,1763371841896,-299.77192,0.000248,7]
[394196891,1763371841904,-299.77192,0.000248,7]
[394196892,1763371841913,-299.77192,0.000248,7]
[394196893,1763371841922,-519.979803,0.000248,2]
[394196894,1763371841930,-519.979803,0.000248,2]
[394196895,1763371841940,-519.979803,0.000248,2]
[394196896,1763371841950,-519.979803,0.000248,2]
[394196897,1763371841960,-152.278821,0.000248,7]
[394196898,1763371841969,-152.278821,0.000248,7]
[394196899,1763371841978,-152.278821,0.000248,7]
[394196900,1763371841987,-152.278821,0.000248,7]
[394196901,1763371841997,-229.347791,0.000248,7]
[394196902,1763371842006,-229.347791,0.000248,7]
[394196903,1763371842015,-229.347791,0.000248,7]
[394196904,1763371842024,-229.347791,0.000248,7]